[Event "Chessable English Open-ch 2022"]
[Site "Kenilwoth"]
[Date "2022.05.19"]
[Round "1.12"]
[White "Pert, Max"]
[Black "Wells, Peter K"]
[Result "1/2-1/2"]
[ECO "D44"]
[WhiteElo "1634"]
[BlackElo "2374"]
[Annotator "TA"]
[PlyCount "65"]
[EventDate "2022.05.18"]
[EventType "swiss"]
[EventCountry "ENG"]
[SourceTitle "playchess.com"]
[Source "ChessBase"]
[SourceQuality "1"]
[TimeControl "5400+30"]

{[%evp 16,65,0,-17,-15,-29,-31,-54,-5,-18,0,0,69,48,273,248,247,234,354,357,541,553,628,577,568,582,580,566,510,207,478,475,458,326,368,356,336,307,270,132,358,136,147,147,133,131,136,129,134,132,139,-360]} 1. d4 {[%emt 0:00:02]} Nf6 {[%emt 0:00:40]} 2. Nf3 {[%emt 0:00:33]} d5 {[%emt 0:00:36]} 3. c4 {[%emt 0:00:52]} e6 {[%emt 0:00:05]} 4. Nc3 {[%emt 0:00:48]} c6 {[%emt 0:01:03]} 5. Bg5 {[%emt 0:01:33][%cal Bc1g5,Bg5h4,Bh4g3][%mdl 32]} h6 {[%emt 0:01:48]} 6. Bh4 {[%emt 0:01:33]} dxc4 {[%emt 0:02:02]} 7. e4 {[%emt 0:01:37][%cal Be2e4,Be4e5][%mdl 32]} g5 {[%emt 0:01:11]} 8. Bg3 {[%emt 0:01:31]} b5 {[%emt 0:00:13]} 9. e5 {[%emt 0:02:05]} Nh5 {[%emt 0:06:02] D44: Semi-Slav: Botvinnik System.} 10. a4 {[%emt 0:15:10]} a6 {[%emt 0:11:05]} 11. Be2 $1 {[%emt 0:09:14]} Nxg3 {[%emt 0:15:48]} (11... Bb4 $1 $15 {is more appropriate.}) 12. hxg3 $11 {[%emt 0:00:17]} Bb7 {[%emt 0:01:13]} 13. Ne4 $1 {[%emt 0:13:58][%cal Of3g5] aiming for Nfxg5!} Bb4+ {[%emt 0:04:23]} (13... c5 $11 14. Nf6+ (14. Nxc5 Bd5 $11) 14... Ke7) 14. Kf1 $14 {[%emt 0:00:34][%cal Of3g5] [#] White is more active.} Be7 $146 {[%emt 0:00:13] [#]} ({Black should try} 14... Ke7 $1 $14) ({Predecessor:} 14... Ke7 15. Qc1 g4 16. Nh2 Qxd4 17. Qf4 Nd7 18. Rd1 Qxb2 19. Nxg4 c3 20. Rxh6 Rxh6 {1-0 (40) Matlakov,M (2490)-Goganov,A (2356) St Petersburg 2008}) 15. Nfxg5 $1 $18 {[%emt 0:07:28][%mdl 576] Deflection} Bxg5 {[%emt 0:16:20]} 16. Nd6+ {[%emt 0:00:17]} Kd7 {[%emt 0:01:17]} (16... Kf8 $142) 17. Nxb7 {[%emt 0:03:45]} Qf8 {[%emt 0:10:02]} (17... Qb6 $142) 18. axb5 {[%emt 0:02:11]} cxb5 {[%emt 0:00:15]} 19. Nd6 {[%emt 0:00:14]} Nc6 {[%emt 0:02:41]} 20. Bf3 {[%emt 0:01:45] Black must now prevent Bxc6+.} Nb4 {[%emt 0:09:55]} 21. Bxa8 {[%emt 0:02:21]} Qxa8 {[%emt 0:00:03]} 22. Qf3 {[%emt 0:02:25]} (22. Nxf7 $142 Rf8 23. Nxg5 hxg5 24. Rh7+ Kc8 25. Qd2) 22... Nd5 $2 {[%emt 0:06:21]} (22... Qxf3 {might work better.} 23. gxf3 Rh7) 23. Qxf7+ {[%emt 0:02:37]} Be7 {[%emt 0:00:04]} 24. Ne4 {[%emt 0:01:57][%cal Oa1a6] Strongly threatening Rxa6!} Ne3+ {[%emt 0:00:37]} 25. fxe3 {[%emt 0:01:59] Intending Nc5+ and mate.} Qxe4 {[%emt 0:03:51]} 26. Kg1 $1 {[%emt 0:01:34]} ({Avoid the trap} 26. Rxa6 $2 Rf8 27. Qxf8 (27. Ra7+ $2 Kc6 $19) 27... Bxf8 28. Ra7+ Kc6 $19) 26... Rf8 {[%emt 0:00:53]} 27. Qg7 {[%emt 0:01:10]} (27. Qh5 $1 $18 {is the precise move to win.}) 27... Qxe3+ $16 {[%emt 0:01:37] This move loses the game for Black.} 28. Kh2 {[%emt 0:00:32]} Rf5 {[%emt 0:00:55][%cal Rf5h5] [#]} 29. Qg4 {[%emt 0:01:44] Prevents Rh5+.} h5 {[%emt 0:01:02]} 30. Qh3 {[%emt 0:01:05] And now Rhe1 would win.} h4 {[%emt 0:02:18]} 31. gxh4 {[%emt 0:02:06]} (31. Rxa6 {is a self mate.} hxg3+ 32. Qxg3 Rh5+) 31... Qf4+ {[%emt 0:00:24]} 32. Qg3 {[%emt 0:01:28]} Qh6 {[%emt 0:00:46] Hoping for ...Bg5.} 33. Qh3 $2 {[%emt 0:20:35][%mdl 40960] Weighted Error Value: White=0.32/Black=0.48. An unexpected result.} (33. Rxa6 $16 {is forced if you want to stay better.} Bxh4 {[#]} 34. Qg7+ $3 {[%mdl 512]} (34. Ra7+ $2 Kc8 $19) 34... Qxg7 35. Ra7+ Kc6 36. Rxg7) 1/2-1/2

[Event "Chessable English Open-ch 2022"]
[Site "Kenilwoth"]
[Date "2022.05.19"]
[Round "1.13"]
[White "Royal, Shreyas"]
[Black "Kumar, Soham"]
[Result "1-0"]
[ECO "A57"]
[WhiteElo "2385"]
[BlackElo "1678"]
[Annotator "TA"]
[PlyCount "71"]
[EventDate "2022.05.18"]
[EventType "swiss"]
[EventCountry "ENG"]
[SourceTitle "playchess.com"]
[Source "ChessBase"]
[SourceQuality "1"]
[TimeControl "5400+30"]

{[%evp 24,71,44,37,42,37,62,55,104,106,75,84,91,14,31,12,47,63,58,51,189,194,652,638,684,680,670,656,655,670,874,875,831,843,787,578,1136,1161,1043,940,1045,1049,1107,1104,1171,1246,1229,1209,858,826]} 1. d4 {[%emt 0:00:02]} Nf6 {[%emt 0:00:05]} 2. c4 {[%emt 0:00:05]} c5 {[%emt 0:00:06]} 3. d5 {[%emt 0:00:04]} b5 {[%emt 0:00:03]} 4. cxb5 {[%emt 0:00:12]} a6 {[%emt 0:00:06]} 5. b6 {[%emt 0:00:02]} Qxb6 {[%emt 0:00:09]} 6. Nc3 {[%emt 0:00:10]} d6 {[%emt 0:00:15]} 7. e4 {[%emt 0:00:11]} Nbd7 {[%emt 0:00:11]} 8. Nf3 {[%emt 0:00:08][%cal Bg1f3,Bf3d2,Bd2c4][%mdl 32]} g6 {[%emt 0:00:14]} 9. Nd2 {[%emt 0:00:11]} Bg7 {[%emt 0:01:18]} 10. Be2 {[%emt 0:00:12]} O-O {[%emt 0:01:01]} 11. Nc4 {[%emt 0:00:30]} Qc7 {[%emt 0:00:32]} 12. Bf4 {[%emt 0:00:06] 12.Bf4 is better than 12.0-0.} Nb6 {[%emt 0:04:10]} 13. Ne3 {[%emt 0:00:40]} Bd7 {[%emt 0:03:07] A57: Benko/Volga Gambit.} 14. O-O {[%emt 0:01:57] [#]} Rfd8 $146 {[%emt 0:06:35]} ({Predecessor:} 14... Rfb8 15. Qc2 Ne8 16. Rab1 Qd8 17. b3 Nc7 18. a4 Rb7 19. Bd3 Rab8 20. Ne2 Qf8 21. Bg3 {0-1 (52) Yrjola,J (2398)-Solozhenkin,E (2508) Jyvaskyla 2006}) 15. a4 {[%emt 0:08:15]} e6 {[%emt 0:07:13]} (15... Rdb8 $14) 16. dxe6 {[%emt 0:06:23]} Bxe6 {[%emt 0:00:16]} 17. a5 {[%emt 0:00:04]} Nc8 {[%emt 0:00:23]} 18. Qd2 {[%emt 0:01:49]} ({White should play} 18. Bg5 $16 {Black must now prevent Bxf6.} Ne7 19. Bc4) 18... Ne7 $11 {[%emt 0:07:35]} 19. Nc4 {[%emt 0:19:16]} Bxc4 {[%emt 0:02:27]} 20. Bxc4 {[%emt 0:00:04]} Nc6 {[%emt 0:00:39]} 21. Bg5 {[%emt 0:01:12] [#] Hoping for Bxf6. This bishop pair is nice.} Ne5 {[%emt 0:07:46] This costs Black the game.} ({Black should try} 21... Re8 $14) 22. Bxf6 $18 {[%emt 0:01:30]} Bxf6 {[%emt 0:00:32]} (22... Nxc4 23. Bxd8 Qxd8) 23. Nd5 $1 {[%emt 0:00:09][%csl LRc7,LRf6] White is clearly winning.} Nxc4 {[%emt 0:00:35]} 24. Nxf6+ {[%emt 0:00:09]} (24. Nxc7 $2 {is the wrong capture.} Nxd2 25. Nxa8 Nxf1 $19) 24... Kg7 {[%emt 0:00:09] [#]} 25. Qc3 {[%emt 0:00:04]} Ne5 {[%emt 0:00:27]} 26. Nd5 {[%emt 0:00:03]} Qc6 {[%emt 0:05:47]} 27. f4 {[%emt 0:00:07]} Re8 {[%emt 0:01:12]} 28. fxe5 {[%emt 0:02:01]} dxe5 {[%emt 0:00:17]} 29. Qf3 {[%emt 0:00:39]} Qb7 {[%emt 0:03:11]} 30. Qf6+ {[%emt 0:00:03]} Kg8 {[%emt 0:00:08]} 31. Qb6 {[%emt 0:00:03]} Qxb6 {[%emt 0:00:30]} 32. axb6 {[%emt 0:00:06][%cal Ba5b6,Bb6b7][%mdl 32]} Red8 {[%emt 0:00:41]} 33. Ra5 {[%emt 0:00:19]} f5 {[%emt 0:00:27]} 34. b7 {[%emt 0:00:04]} Rab8 {[%emt 0:00:07]} 35. Ne7+ {[%emt 0:00:04]} Kg7 {[%emt 0:00:17]} 36. Nc6 {[%emt 0:00:04] Weighted Error Value: White=0.21 (precise) /Black=0.78} 1-0

[Event "Chessable English Open-ch 2022"]
[Site "Kenilwoth"]
[Date "2022.05.19"]
[Round "1.14"]
[White "Watson, Jacob"]
[Black "Haydon, David L"]
[Result "0-1"]
[ECO "B14"]
[WhiteElo "1922"]
[BlackElo "2275"]
[Annotator "TA"]
[PlyCount "76"]
[EventDate "2022.05.18"]
[EventType "swiss"]
[EventCountry "ENG"]
[SourceTitle "playchess.com"]
[Source "ChessBase"]
[SourceQuality "1"]
[TimeControl "5400+30"]

{[%evp 22,76,0,0,0,-11,-27,-37,-35,-19,-22,-29,-41,-39,-25,-39,-41,-78,-78,-82,-75,-83,-77,-184,-76,-78,-41,-32,-33,-104,-81,-127,-121,-120,-114,-119,-102,-107,-100,-114,-89,-99,-62,-111,-104,-109,-89,-83,-51,-884,-884,-29995,-29996,-29996,-29997,-29997,-29998]} 1. e4 {[%emt 0:00:06]} c6 {[%emt 0:00:29][%cal Bc7c6,Bc6d5][%mdl 32]} 2. d4 {[%emt 0:00:31]} d5 {[%emt 0:00:11]} 3. exd5 {[%emt 0:00:32]} cxd5 {[%emt 0:00:08]} 4. c4 {[%emt 0:00:05]} Nf6 {[%emt 0:01:04]} 5. Nc3 {[%emt 0:01:09]} e6 {[%emt 0:00:59]} 6. Nf3 {[%emt 0:01:57]} Nc6 {[%emt 0:00:37]} 7. Bd3 {[%emt 0:02:28]} dxc4 {[%emt 0:03:31]} 8. Bxc4 {[%emt 0:00:17]} Be7 {[%emt 0:00:22]} 9. O-O {[%emt 0:04:45]} O-O {[%emt 0:02:37]} 10. Be3 {[%emt 0:08:19]} b6 {[%emt 0:05:04]} 11. Qe2 {[%emt 0:09:54]} Bb7 {[%emt 0:04:30]} 12. a3 {[%emt 0:06:15]} Rc8 {[%emt 0:03:09] B14: Caro-Kann: Panov-Botvinnik Attack with 5...e6 and 5...g6.} 13. Rac1 {[%emt 0:08:23]} Bd6 {[%emt 0:09:35]} 14. Ba6 {[%emt 0:02:32]} Bxa6 {[%emt 0:06:37] Black is slightly better.} 15. Qxa6 {[%emt 0:00:09]} h6 {[%emt 0:00:46] [#]} 16. Qa4 $146 {[%emt 0:09:05]} ({Predecessor:} 16. h3 Bb8 17. Rc2 Qd7 18. Rfc1 Rfd8 19. Ne2 Ne7 20. Nc3 Rc6 21. Qe2 Nfd5 22. Nxd5 Qxd5 23. Rxc6 Nxc6 {½-½ (40) Salonen,J (2106)-Potrata,J (2297) ICCF email 2013}) 16... Qd7 {[%emt 0:03:27]} 17. Rfd1 {[%emt 0:04:11]} Rfd8 {[%emt 0:00:30]} 18. Nd2 {[%emt 0:06:26]} Bb8 {[%emt 0:08:56][%cal Rc6d4]} 19. Nde4 {[%emt 0:09:22]} Nxe4 {[%emt 0:03:24]} 20. Nxe4 {[%emt 0:00:16]} f5 {[%emt 0:00:30]} 21. d5 {[%emt 0:09:03]} exd5 {[%emt 0:03:03]} 22. Nc3 {[%emt 0:00:34]} (22. Nd2 $17 {only move.}) 22... Qf7 {[%emt 0:07:22]} (22... d4 $19 {aiming for ...Qc7.} 23. Ne2 Qe6) 23. Ne2 $17 {[%emt 0:03:39]} Ne5 {[%emt 0:06:33][%cal Bc6e5,Be5c4,Bc4e3][%mdl 32]} 24. Rxc8 {[%emt 0:02:10]} Rxc8 {[%emt 0:00:11]} 25. Nf4 {[%emt 0:01:11]} (25. Qb5 $15) 25... Nc4 {[%emt 0:02:17]} 26. Qb5 {[%emt 0:02:23]} (26. Qb3 $142) 26... Nxe3 {[%emt 0:04:07]} 27. fxe3 {[%emt 0:00:09]} Bxf4 {[%emt 0:00:22]} 28. exf4 {[%emt 0:00:12][%mdl 4096] Endgame KQR-KQR} Rd8 {[%emt 0:00:35]} 29. Qb4 {[%emt 0:03:12]} Qc7 {[%emt 0:01:44]} 30. Qd4 {[%emt 0:01:21]} Qe7 {[%emt 0:03:47]} 31. Kf2 {[%emt 0:02:11]} Kh7 {[%emt 0:00:22]} 32. Qe3 {[%emt 0:01:09]} (32. g3 $15) 32... Qh4+ {[%emt 0:01:13]} 33. Kg1 {[%emt 0:00:38]} d4 {[%emt 0:00:33]} 34. Qe5 {[%emt 0:01:15]} Qh5 {[%emt 0:01:36]} 35. Rd3 {[%emt 0:00:36][%mdl 8192] [#] White does not recover from this.} (35. Rxd4 $15 Re8 36. Qb5) 35... Re8 $19 {[%emt 0:01:10]} 36. Qxd4 {[%emt 0:00:38]} Re1+ {[%emt 0:01:17] Black mates.} 37. Kf2 {[%emt 0:00:04]} Qe2+ {[%emt 0:00:46]} 38. Kg3 {[%emt 0:00:18]} Qg4+ {[%emt 0:00:17] Weighted Error Value: White=0.61/Black=0.13 (very precise)} 0-1

[Event "Chessable English Open-ch 2022"]
[Site "Kenilwoth"]
[Date "2022.05.19"]
[Round "1.15"]
[White "Macklin, Paul"]
[Black "Herring, Samuel"]
[Result "1/2-1/2"]
[ECO "B13"]
[WhiteElo "2350"]
[BlackElo "1900"]
[Annotator "TA"]
[PlyCount "49"]
[EventDate "2022.05.18"]
[EventType "swiss"]
[EventCountry "ENG"]
[SourceTitle "playchess.com"]
[Source "ChessBase"]
[SourceQuality "1"]
[TimeControl "5400+30"]

{[%evp 24,49,25,15,28,8,10,15,26,4,6,4,4,0,0,-12,0,0,43,0,65,70,44,60,64,21,23,18]} 1. e4 {[%emt 0:00:02]} c6 {[%emt 0:00:14]} 2. d4 {[%emt 0:00:17]} d5 {[%emt 0:00:05]} 3. exd5 {[%emt 0:01:34]} cxd5 {[%emt 0:00:07]} 4. Bd3 {[%emt 0:00:06]} Nc6 {[%emt 0:00:48]} 5. c3 {[%emt 0:00:07]} Nf6 {[%emt 0:00:48]} 6. Bf4 {[%emt 0:00:33]} Bg4 {[%emt 0:00:43]} 7. Qb3 {[%emt 0:00:27]} Qd7 {[%emt 0:00:44]} 8. Nd2 {[%emt 0:02:03][%cal Bb1d2,Bd2f3,Bf3e5][%mdl 32]} e6 {[%emt 0:00:22]} 9. Ngf3 {[%emt 0:00:32]} Bd6 {[%emt 0:01:17]} 10. Bxd6 {[%emt 0:04:36]} Qxd6 {[%emt 0:00:05]} 11. O-O {[%emt 0:00:05]} O-O {[%emt 0:00:26]} 12. Rae1 {[%emt 0:15:51]} Bxf3 {[%emt 0:00:31]} 13. Nxf3 {[%emt 0:03:06]} Qc7 {[%emt 0:00:23] B13: Caro-Kann: Exchange Variation and Panov-Botvinnik Attack.} 14. Qd1 {[%emt 0:04:19]} Rab8 {[%emt 0:02:46]} 15. Qe2 {[%emt 0:12:10] [#]} a6 $146 {[%emt 0:05:08] The position is equal.} ({Predecessor:} 15... Rfe8 16. Ne5 Nxe5 17. dxe5 Nd7 18. Qh5 g6 19. Qg5 b5 20. a3 a5 21. h4 Nc5 {½-½ (64) Juhasz,B (2250)-Zimina,O (2341) Tornelo INT 2021}) 16. Kh1 {[%emt 0:01:59]} b5 {[%emt 0:05:36]} 17. a3 {[%emt 0:01:35]} Na5 {[%emt 0:04:44]} 18. Ne5 {[%emt 0:00:41]} Nc4 {[%emt 0:02:24]} 19. f4 {[%emt 0:00:50]} a5 {[%emt 0:04:39]} 20. f5 {[%emt 0:01:38]} exf5 {[%emt 0:07:24]} 21. Rxf5 {[%emt 0:00:46]} Ne4 {[%emt 0:23:13]} ({Black should play} 21... Rfe8 $11) 22. Nxc4 $14 {[%emt 0:11:45]} bxc4 {[%emt 0:00:50]} 23. Bxe4 {[%emt 0:03:15]} ({And not} 23. Rxd5 cxd3 24. Qxe4 d2 $17) 23... dxe4 {[%emt 0:00:06]} 24. Qxe4 {[%emt 0:04:59]} Rxb2 {[%emt 0:02:29]} 25. Rc5 {[%emt 0:07:52] Weighted Error Value: White=0.10 (very precise) /Black=0.18 (very precise)} 1/2-1/2

[Event "Chessable English Open-ch 2022"]
[Site "Kenilwoth"]
[Date "2022.05.19"]
[Round "1.16"]
[White "Shenbagakumar, Gautham"]
[Black "Okhai, Shabir"]
[Result "0-1"]
[ECO "C54"]
[WhiteElo "1700"]
[BlackElo "2121"]
[Annotator "TA"]
[PlyCount "98"]
[EventDate "2022.05.18"]
[EventType "swiss"]
[EventCountry "ENG"]
[SourceTitle "playchess.com"]
[Source "ChessBase"]
[SourceQuality "1"]
[TimeControl "5400+30"]

{[%evp 17,97,0,7,0,0,0,3,6,2,0,7,-40,-16,-19,-14,-23,-3,-11,0,-12,65,61,60,34,19,25,31,29,85,54,108,114,141,97,90,66,59,0,9,0,0,0,0,-24,0,-664,-661,-641,-626,-676,-674,-692,-684,-695,-550,-1011,-1005,-994,-991,-29966,-29967,-29964,-29964,-5700,-5281,-12812,-6103,-12806,-12792,-12650,-4827,-29991,-29984,-29983,-29984,-29994,-29995,-29996,-29997,-29997,-29998,-29999]} 1. e4 {[%emt 0:00:02]} e5 {[%emt 0:00:05]} 2. Nf3 {[%emt 0:00:07]} Nc6 {[%emt 0:00:04]} 3. Bc4 {[%emt 0:00:04]} Bc5 {[%emt 0:00:05]} 4. c3 {[%emt 0:00:04]} Nf6 {[%emt 0:00:03]} 5. d4 {[%emt 0:00:04]} exd4 {[%emt 0:00:04]} 6. e5 {[%emt 0:00:05]} d5 {[%emt 0:00:03]} 7. Bb5 {[%emt 0:00:04]} Ne4 {[%emt 0:00:04]} 8. cxd4 {[%emt 0:00:05]} Bb6 {[%emt 0:00:04]} 9. Nc3 {[%emt 0:00:58]} O-O {[%emt 0:00:23]} 10. Be3 {[%emt 0:00:42] C54: Giuoco Piano: 4 c3 Nf6, main lines with 5 d4 and 5 d3.} Bg4 {[%emt 0:00:23]} 11. h3 {[%emt 0:22:09]} Bxf3 {[%emt 0:04:07]} 12. gxf3 {[%emt 0:01:18] The position is equal.} Nxc3 {[%emt 0:00:47]} 13. bxc3 {[%emt 0:00:05]} Ne7 {[%emt 0:03:03] [#]} 14. Qd3 $146 {[%emt 0:14:28]} (14. Bd3 $11 {should be considered.}) ({Predecessor:} 14. Bd3 f5 15. f4 Rc8 16. Qb3 c5 17. dxc5 Bxc5 18. Qxb7 Rb8 19. Qa6 Qc7 20. Rc1 {½-½ (52) Motylev,A (2669)-Oleksienko,M (2565) Legnica 2013}) 14... Qc8 {[%emt 0:04:55]} 15. Ba4 {[%emt 0:04:59]} c5 {[%emt 0:10:32]} 16. Rc1 {[%emt 0:17:10]} cxd4 {[%emt 0:05:16]} 17. cxd4 {[%emt 0:00:33]} Qf5 {[%emt 0:02:02]} 18. Ke2 {[%emt 0:14:24]} f6 {[%emt 0:12:15]} (18... Qh5 $11) 19. Qxf5 $1 $14 {[%emt 0:05:35]} Nxf5 {[%emt 0:00:11]} 20. Rhd1 {[%emt 0:00:16]} fxe5 {[%emt 0:08:10]} 21. dxe5 {[%emt 0:00:05]} d4 {[%emt 0:01:52]} 22. Bd2 {[%emt 0:04:14] And now Bb3+ would win.} d3+ {[%emt 0:05:10]} (22... Nh4 $11 {keeps the balance.}) 23. Kf1 {[%emt 0:05:21]} Nd4 {[%emt 0:01:11]} (23... Nh4 $14) 24. f4 $16 {[%emt 0:04:54]} Kh8 {[%emt 0:02:47]} 25. Be3 {[%emt 0:02:24]} Ne6 {[%emt 0:02:15]} 26. Rc4 {[%emt 0:00:38] [#] Bd7 is the strong threat.} ({Much worse is} 26. Rxd3 $6 Nxf4 27. Rb3 Nd5 28. Bxb6 axb6 $11) 26... Rad8 {[%emt 0:03:12] Inhibits Bd7.} 27. Bb3 {[%emt 0:02:00]} ({White should try} 27. h4 $14) 27... g5 $11 {[%emt 0:02:30]} 28. Bxb6 {[%emt 0:00:43]} axb6 {[%emt 0:00:02]} 29. fxg5 {[%emt 0:00:37]} Nxg5 {[%emt 0:03:12]} 30. h4 {[%emt 0:00:19]} Nh3 {[%emt 0:01:21]} (30... Nf3 $5 {[%cal Rf8g8]} 31. Re4 Rf5 $15) 31. Rd2 {[%emt 0:00:51][%mdl 8192] [#] White is now going downhill.} (31. Kg2 $11 Nf4+ 32. Kf1) 31... Rg8 $1 $19 {[%emt 0:00:12][%csl Gh3][%cal Rg8g1]} 32. Rxd3 {[%emt 0:00:35]} Rxd3 {[%emt 0:00:41]} 33. Ke2 {[%emt 0:00:01] Prevents Rd2+.} Rgd8 {[%emt 0:00:44]} 34. f4 {[%emt 0:00:35]} R3d4 {[%emt 0:02:04]} 35. f5 {[%emt 0:00:58]} Nf4+ {[%emt 0:00:54]} 36. Ke3 {[%emt 0:00:08]} Ng2+ {[%emt 0:00:24]} 37. Kf2 {[%emt 0:00:21]} Rd2+ {[%emt 0:01:38]} 38. Kg3 {[%emt 0:00:11]} R8d3+ {[%emt 0:00:44]} 39. Kg4 {[%emt 0:00:12]} Ne3+ {[%emt 0:00:06]} 40. Kg5 {[%emt 0:00:08]} Nxc4 {[%emt 0:00:44]} 41. Bxc4 {[%emt 0:00:04]} Rc3 {[%emt 0:00:25]} 42. Bf7 {[%emt 0:00:25]} Kg7 {[%emt 0:00:26]} 43. Be6 {[%emt 0:00:30]} Rg2+ {[%emt 0:00:58]} 44. Kh5 {[%emt 0:00:12]} Re2 {[%emt 0:00:54] Black mates.} 45. f6+ {[%emt 0:00:44]} Kf8 {[%emt 0:00:01]} 46. Kh6 {[%emt 0:00:15]} Rxe5 {[%emt 0:00:06]} 47. Bb3 {[%emt 0:00:34]} Rc6 {[%emt 0:00:24]} 48. Kxh7 {[%emt 0:00:05]} Rxf6 {[%emt 0:00:07][%cal Re5h5]} 49. h5 {[%emt 0:00:29]} Rxh5# {[%emt 0:00:05] Weighted Error Value: White=0.72/Black=0.19 (very precise)} 0-1

[Event "Chessable English Open-ch 2022"]
[Site "Kenilwoth"]
[Date "2022.05.19"]
[Round "2.1"]
[White "Harvey, Marcus R"]
[Black "Arkell, Keith C"]
[Result "1/2-1/2"]
[ECO "A33"]
[WhiteElo "2455"]
[BlackElo "2367"]
[Annotator "TA"]
[PlyCount "101"]
[EventDate "2022.05.18"]
[EventType "swiss"]
[EventCountry "ENG"]
[SourceTitle "playchess.com"]
[Source "ChessBase"]
[SourceQuality "1"]
[TimeControl "5400+30"]

{[%evp 13,101,7,22,29,18,15,29,24,16,20,21,20,37,27,37,35,37,35,15,35,46,57,71,70,58,59,62,60,57,63,66,48,48,48,48,48,48,48,50,51,51,48,54,54,58,0,51,0,59,59,59,59,59,60,62,44,44,44,65,14,14,14,15,16,158,0,0,0,0,0,0,0,0,0,0,0,0,0,0,0,0,0,0,0,0,0,0,0,0,-5518]} 1. c4 {[%emt 0:00:02]} c5 {[%emt 0:00:08]} 2. Nf3 {[%emt 0:00:10]} Nf6 {[%emt 0:00:14]} 3. Nc3 {[%emt 0:00:05]} Nc6 {[%emt 0:00:59]} 4. d4 {[%emt 0:00:04]} cxd4 {[%emt 0:00:05]} 5. Nxd4 {[%emt 0:00:03]} e6 {[%emt 0:01:07]} 6. a3 {[%emt 0:00:10]} d5 {[%emt 0:00:42]} 7. cxd5 {[%emt 0:00:07]} Nxd5 {[%emt 0:03:24]} 8. Nxc6 {[%emt 0:00:24] A33: Symmetrical English: 2 Nf3 Nf6 3 d4 cxd4 4 Nxd4 e6 5 Nc3 Nc6.} bxc6 {[%emt 0:00:05]} 9. Bd2 {[%emt 0:02:16]} Be7 {[%emt 1:28:16]} 10. Qc2 {[%emt 0:01:45] White has an edge.} O-O {[%emt 0:00:00]} 11. e4 {[%emt 0:03:24]} Nxc3 {[%emt 0:00:00]} 12. Bxc3 {[%emt 0:00:07] [#]} a5 $146 {[%emt 0:00:00]} ({Predecessor:} 12... Qb6 13. Rd1 Ba6 14. Bxa6 Qxa6 15. Rd7 Bf6 16. Bxf6 gxf6 17. Qc3 Rfd8 18. Qg3+ Kf8 {½-½ (28) Ribli,Z (2577)-Schmittdiel,E (2438) Austria 2009}) 13. Be2 {[%emt 0:05:41]} Qb6 {[%emt 0:00:00]} 14. O-O {[%emt 0:00:39]} Ba6 {[%emt 0:00:00]} 15. Rad1 {[%emt 0:03:38]} Bxe2 {[%emt 0:00:00]} 16. Qxe2 {[%emt 0:00:03]} Qb5 {[%emt 0:00:00]} 17. Qg4 {[%emt 0:01:13][%csl Gc3][%cal Rg4g7] [#]} Qg5 {[%emt 0:00:00]} 18. Qxg5 {[%emt 0:01:17]} Bxg5 {[%emt 0:00:00]} 19. Rd7 {[%emt 0:01:54]} Rfd8 {[%emt 0:05:00]} 20. Rfd1 {[%emt 0:07:20] White is more active.} Rxd7 {[%emt 0:00:00]} 21. Rxd7 $14 {[%emt 0:00:13][%mdl 4096] Endgame KRB-KRB} Bf6 {[%emt 0:00:00]} 22. e5 {[%emt 0:01:09]} Rd8 {[%emt 0:00:00]} 23. Rxd8+ {[%emt 0:09:52]} Bxd8 {[%emt 0:00:00] KB-KB} 24. Kf1 {[%emt 0:00:42]} Kf8 {[%emt 0:00:00]} 25. Ke2 {[%emt 0:01:00]} Ke8 {[%emt 0:00:00]} 26. Kd3 {[%emt 0:04:22]} Kd7 {[%emt 0:00:00]} 27. Kc4 {[%emt 0:02:36]} Bb6 {[%emt 0:00:00]} 28. Bd4 {[%emt 0:00:35]} Bd8 {[%emt 0:00:00]} 29. Bc3 {[%emt 0:11:17]} Bb6 {[%emt 0:00:00]} 30. Kb3 {[%emt 0:05:51]} (30. g4 $14) 30... Kc8 {[%emt 0:00:00]} ({Black should try} 30... Bxf2 $11 31. Bxa5 c5) 31. Ka4 {[%emt 0:00:38]} Kb7 {[%emt 0:00:00]} 32. Bxa5 {[%emt 0:00:29]} Bxf2 {[%emt 0:06:30]} 33. Bc3 {[%emt 0:37:54] Against Bd4} h5 {[%emt 0:00:00]} 34. Kb4 {[%emt 0:00:00]} Bh4 {[%emt 0:00:00]} 35. Kc4 {[%emt 0:00:00]} Bd8 {[%emt 0:00:00]} 36. b4 {[%emt 0:00:00]} (36. Kd4 $14) 36... f5 $11 {[%emt 0:00:00]} 37. exf6 {[%emt 0:00:00]} gxf6 {[%emt 0:00:00]} 38. a4 {[%emt 0:00:00]} Bc7 {[%emt 0:00:00]} (38... f5 $11) 39. h3 $2 {[%emt 0:00:00]} ({White has to play} 39. Bxf6 $16 {Black must now prevent g3.} Bxh2 40. Bg5) 39... f5 $1 {[%emt 0:00:00] The position is equal.} 40. Kc5 {[%emt 0:00:00]} Bg3 {[%emt 0:00:00]} 41. a5 {[%emt 0:00:00]} Kc7 {[%emt 0:00:00]} 42. Kd4 {[%emt 0:00:00]} e5+ {[%emt 0:00:00][%cal Be6e5,Be5e4,Be4e3][%mdl 32]} 43. Kc4 {[%emt 0:00:00]} e4 {[%emt 0:00:00]} 44. Bd4 {[%emt 0:00:00]} f4 {[%emt 0:01:30]} 45. a6 {[%emt 0:00:16]} e3 {[%emt 0:01:23] [#] Strongly threatening ...e2.} 46. Kd3 {[%emt 0:00:05]} h4 {[%emt 0:00:48]} 47. Ke2 {[%emt 0:00:59]} Kb8 {[%emt 0:00:19]} 48. Bb6 {[%emt 0:02:03]} Ka8 {[%emt 0:00:10]} 49. Kf3 {[%emt 0:00:17]} Kb8 {[%emt 0:00:05]} 50. Bc5 {[%emt 0:02:21]} Ka8 {[%emt 0:00:01]} 51. Ke4 $2 {[%emt 0:02:59][%mdl 40960] Weighted Error Value: White=0.13 (very precise) /Black=0.12 (very precise) . An unexpected result.} (51. Bd4 $11) 1/2-1/2